[Event "*** Qualifier 1: Titled Tuesday 3|2 Blitz"]
[Site "Chess.com"]
[Date "2017.04.04"]
[Round "7"]
[White "Maung-Mg-KZH"]
[Black "SantoBlue"]
[Result "1-0"]
[WhiteElo "2340"]
[BlackElo "2538"]
[TimeControl "180+2"]
[EndTime "14:38:54 PDT"]
[Termination "Maung-Mg-KZH won by resignation"]

1. Nf3 {[%clk 0:03:02]} 1... Nf6 {[%clk 0:02:57.6]} 2. c4 {[%clk 0:03:01]} 2...
e6 {[%clk 0:02:58.9]} 3. Nc3 {[%clk 0:02:59.1]} 3... b6 {[%clk 0:02:59.6]} 4. d4
{[%clk 0:02:47.2]} 4... Bb7 {[%clk 0:02:59.1]} 5. Bg5 {[%clk 0:02:46.2]} 5...
Bb4 {[%clk 0:02:58.6]} 6. Rc1 {[%clk 0:02:45.1]} 6... h6 {[%clk 0:02:56.7]} 7.
Bf4 {[%clk 0:02:45.4]} 7... d6 {[%clk 0:02:57.3]} 8. e3 {[%clk 0:02:44.7]} 8...
Ne4 {[%clk 0:02:57.4]} 9. Qa4+ {[%clk 0:02:43.6]} 9... Nc6 {[%clk 0:02:57.3]}
10. Bd3 {[%clk 0:02:42.3]} 10... Bxc3+ {[%clk 0:02:23.1]} 11. bxc3 {[%clk
0:02:42.5]} 11... Nf6 {[%clk 0:02:24.1]} 12. d5 {[%clk 0:02:38]} 12... exd5
{[%clk 0:02:25.5]} 13. cxd5 {[%clk 0:02:38.5]} 13... Nxd5 {[%clk 0:02:26.7]} 14.
Be4 {[%clk 0:02:31.7]} 14... Ne7 {[%clk 0:02:24.4]} 15. O-O {[%clk 0:02:30.2]}
15... O-O {[%clk 0:02:23.3]} 16. Rfd1 {[%clk 0:02:26.2]} 16... Qe8 {[%clk
0:02:18]} 17. Qc2 {[%clk 0:02:22.2]} 17... Na5 {[%clk 0:02:15.3]} 18. Bh7+
{[%clk 0:02:18]} 18... Kh8 {[%clk 0:02:16.3]} 19. Bd3 {[%clk 0:02:18.4]} 19...
Ng6 {[%clk 0:02:17.5]} 20. Nd4 {[%clk 0:02:15.9]} 20... Ne5 {[%clk 0:02:13.7]}
21. Bb5 {[%clk 0:02:12]} 21... Qe7 {[%clk 0:02:12.8]} 22. Rb1 {[%clk 0:02:11.3]}
22... Nac4 {[%clk 0:02:07.4]} 23. Qa4 {[%clk 0:02:07.7]} 23... Na5 {[%clk
0:02:01.1]} 24. Qc2 {[%clk 0:02:07.1]} 24... Qf6 {[%clk 0:02:00.5]} 25. Be2
{[%clk 0:02:03.5]} 25... Qg6 {[%clk 0:01:55.2]} 26. Qxg6 {[%clk 0:02:01]} 26...
Nxg6 {[%clk 0:01:57.1]} 27. Bg3 {[%clk 0:01:58.3]} 27... a6 {[%clk 0:01:58.6]}
28. Rb4 {[%clk 0:01:54.4]} 28... c5 {[%clk 0:01:52.9]} 29. Rxb6 {[%clk
0:01:49.5]} 29... cxd4 {[%clk 0:01:54.1]} 30. Bxd6 {[%clk 0:01:37.5]} 30... Rfd8
{[%clk 0:01:31.7]} 31. Bb4 {[%clk 0:01:36.6]} 31... dxc3 {[%clk 0:01:32.3]} 32.
Bxa5 {[%clk 0:01:35.7]} 32... Rxd1+ {[%clk 0:01:26.5]} 33. Bxd1 {[%clk
0:01:34.9]} 33... Rd8 {[%clk 0:01:28]} 34. Rb1 {[%clk 0:01:29.7]} 34... Be4
{[%clk 0:01:08]} 35. Rc1 {[%clk 0:01:28.7]} 35... Rd2 {[%clk 0:01:08.6]} 36.
Bxc3 {[%clk 0:01:27.1]} 36... Rxa2 {[%clk 0:01:09.5]} 37. Bb3 {[%clk 0:01:25.3]}
37... Ra3 {[%clk 0:01:05.3]} 38. Bxf7 {[%clk 0:01:25.6]} 38... a5 {[%clk
0:01:06.3]} 39. Bb2 {[%clk 0:01:21.3]} 39... Rd3 {[%clk 0:00:55.7]} 40. Rc8+
{[%clk 0:01:19.1]} 40... Kh7 {[%clk 0:00:57.1]} 41. Bg8+ {[%clk 0:01:16.8]}
41... Kh8 {[%clk 0:00:58.5]} 42. Bc4+ {[%clk 0:01:16.4]} 42... Kh7 {[%clk
0:00:59.8]} 43. Bxd3 {[%clk 0:01:15.8]} 43... Bxd3 {[%clk 0:01:01.7]} 44. Rc7
{[%clk 0:01:11.2]} 1-0

[Event "*** Qualifier 1: Titled Tuesday 3|2 Blitz"]
[Site "Chess.com"]
[Date "2017.04.04"]
[Round "7"]
[White "ka1ser64"]
[Black "donotreadit"]
[Result "0-1"]
[WhiteElo "2326"]
[BlackElo "2481"]
[TimeControl "180+2"]
[EndTime "14:39:03 PDT"]
[Termination "donotreadit won by checkmate"]

1. d4 {[%clk 0:03:02]} 1... d6 {[%clk 0:02:58.7]} 2. Nf3 {[%clk 0:03:01.7]} 2...
g6 {[%clk 0:02:58.4]} 3. c4 {[%clk 0:03:02.9]} 3... Bg4 {[%clk 0:02:57.7]} 4.
Nc3 {[%clk 0:03:03.5]} 4... Bxf3 {[%clk 0:02:58.1]} 5. exf3 {[%clk 0:03:03.2]}
5... c6 {[%clk 0:02:58.6]} 6. Bd3 {[%clk 0:03:01.3]} 6... Bg7 {[%clk 0:02:59.9]}
7. Be3 {[%clk 0:03:00.9]} 7... Nd7 {[%clk 0:03:01]} 8. O-O {[%clk 0:03:01.5]}
8... e6 {[%clk 0:03:02.3]} 9. Rb1 {[%clk 0:02:58.6]} 9... d5 {[%clk 0:03:02.7]}
10. c5 {[%clk 0:02:55.4]} 10... Ne7 {[%clk 0:03:02.3]} 11. b4 {[%clk 0:02:55.7]}
11... e5 {[%clk 0:03:01.8]} 12. dxe5 {[%clk 0:02:55.3]} 12... Nxe5 {[%clk
0:03:02.8]} 13. Ne2 {[%clk 0:02:54.5]} 13... a6 {[%clk 0:02:59.8]} 14. a4 {[%clk
0:02:54.9]} 14... O-O {[%clk 0:02:59.6]} 15. b5 {[%clk 0:02:54.7]} 15... axb5
{[%clk 0:02:59.9]} 16. axb5 {[%clk 0:02:55.5]} 16... Ra3 {[%clk 0:02:59.4]} 17.
Bc2 {[%clk 0:02:53.5]} 17... Nc4 {[%clk 0:03:00]} 18. Bd4 {[%clk 0:02:53]} 18...
Qd7 {[%clk 0:03:00]} 19. Bxg7 {[%clk 0:02:50.3]} 19... Kxg7 {[%clk 0:03:01.9]}
20. Qd4+ {[%clk 0:02:50.4]} 20... f6 {[%clk 0:03:01.6]} 21. Rfe1 {[%clk
0:02:49.3]} 21... Rf7 {[%clk 0:02:52]} 22. Nf4 {[%clk 0:02:49.4]} 22... Nf5
{[%clk 0:02:44.5]} 23. Ne6+ {[%clk 0:02:48.6]} 23... Qxe6 {[%clk 0:02:44.1]} 24.
Qf4 {[%clk 0:02:08.5]} 24... Qd7 {[%clk 0:02:42.2]} 25. bxc6 {[%clk 0:02:09.1]}
25... bxc6 {[%clk 0:02:43.2]} 26. Rb8 {[%clk 0:02:09.4]} 26... Qc7 {[%clk
0:02:20.3]} 27. Qxc7 {[%clk 0:02:05.8]} 27... Rxc7 {[%clk 0:02:22.2]} 28. Bxf5
{[%clk 0:02:07]} 28... gxf5 {[%clk 0:02:23.2]} 29. h4 {[%clk 0:02:08.1]} 29...
Ne5 {[%clk 0:02:17.3]} 30. f4 {[%clk 0:02:05.5]} 30... Ng6 {[%clk 0:02:10.6]}
31. g3 {[%clk 0:02:06.8]} 31... Re7 {[%clk 0:02:03.2]} 32. Reb1 {[%clk
0:02:02.6]} 32... Raa7 {[%clk 0:02:02.8]} 33. h5 {[%clk 0:02:02.8]} 33... Nf8
{[%clk 0:02:02.5]} 34. Kg2 {[%clk 0:01:50.4]} 34... Ne6 {[%clk 0:01:58.4]} 35.
Rc8 {[%clk 0:01:48.1]} 35... Rac7 {[%clk 0:01:57.8]} 36. Ra8 {[%clk 0:01:49.1]}
36... Nxc5 {[%clk 0:01:52.7]} 37. Rbb8 {[%clk 0:01:49.9]} 37... Kh6 {[%clk
0:01:54.1]} 38. f3 {[%clk 0:01:46.7]} 38... d4 {[%clk 0:01:52.3]} 39. Kh3 {[%clk
0:01:47.2]} 39... Nd3 {[%clk 0:01:51]} 40. Kh4 {[%clk 0:01:46.1]} 40... Re1
{[%clk 0:01:40.2]} 41. g4 {[%clk 0:01:43]} 41... Nxf4 {[%clk 0:01:39.5]} 42. Rf8
{[%clk 0:01:39.1]} 42... Nd5 {[%clk 0:01:10]} 43. Rg8 {[%clk 0:01:23.8]} 43...
Rg7 {[%clk 0:01:08.5]} 44. Rgc8 {[%clk 0:01:19.5]} 44... fxg4 {[%clk 0:01:08.9]}
45. fxg4 {[%clk 0:01:04.7]} 45... Re4 {[%clk 0:01:09.7]} 46. Rxc6 {[%clk
0:01:04.3]} 46... Rexg4+ {[%clk 0:01:10.9]} 47. Kh3 {[%clk 0:01:05.3]} 47...
Nf4+ {[%clk 0:01:12.4]} 48. Kh2 {[%clk 0:01:05.8]} 48... Rh4# {[%clk 0:01:13.9]}
0-1

[Event "*** Qualifier 1: Titled Tuesday 3|2 Blitz"]
[Site "Chess.com"]
[Date "2017.04.04"]
[Round "7"]
[White "hypert"]
[Black "politeplayer"]
[Result "1-0"]
[WhiteElo "2260"]
[BlackElo "2093"]
[TimeControl "180+2"]
[EndTime "14:39:09 PDT"]
[Termination "hypert won by checkmate"]

1. e4 {[%clk 0:03:02]} 1... c5 {[%clk 0:02:58.4]} 2. Nf3 {[%clk 0:03:02.5]} 2...
Nc6 {[%clk 0:02:57.6]} 3. Bb5 {[%clk 0:03:01.7]} 3... d6 {[%clk 0:02:57.8]} 4.
O-O {[%clk 0:03:01.8]} 4... Bd7 {[%clk 0:02:57.9]} 5. c3 {[%clk 0:03:01.6]} 5...
Nf6 {[%clk 0:02:56.9]} 6. Re1 {[%clk 0:03:03]} 6... a6 {[%clk 0:02:56.4]} 7. Ba4
{[%clk 0:03:04.5]} 7... b5 {[%clk 0:02:53.2]} 8. Bc2 {[%clk 0:03:05.4]} 8... Bg4
{[%clk 0:02:50.8]} 9. h3 {[%clk 0:03:04.8]} 9... Bh5 {[%clk 0:02:50]} 10. d3
{[%clk 0:03:05.5]} 10... e6 {[%clk 0:02:48.2]} 11. Nbd2 {[%clk 0:03:06.4]} 11...
Be7 {[%clk 0:02:48.5]} 12. Nf1 {[%clk 0:03:06.3]} 12... O-O {[%clk 0:02:37.4]}
13. Ng3 {[%clk 0:03:06.9]} 13... Bg6 {[%clk 0:02:37.3]} 14. a4 {[%clk
0:03:05.6]} 14... b4 {[%clk 0:02:33.1]} 15. d4 {[%clk 0:03:06.1]} 15... bxc3
{[%clk 0:02:32.6]} 16. bxc3 {[%clk 0:03:07.3]} 16... cxd4 {[%clk 0:02:33.5]} 17.
cxd4 {[%clk 0:03:08.6]} 17... Nb4 {[%clk 0:02:19.5]} 18. Bb1 {[%clk 0:03:07.3]}
18... a5 {[%clk 0:02:00.1]} 19. Nh4 {[%clk 0:02:59]} 19... Rc8 {[%clk 0:01:57]}
20. Nxg6 {[%clk 0:02:58.3]} 20... hxg6 {[%clk 0:01:56.2]} 21. Bd2 {[%clk
0:02:58.3]} 21... d5 {[%clk 0:01:50.2]} 22. e5 {[%clk 0:02:57.1]} 22... Nd7
{[%clk 0:01:51.4]} 23. Ne2 {[%clk 0:02:55.4]} 23... Nb6 {[%clk 0:01:50.6]} 24.
Nc3 {[%clk 0:02:53.8]} 24... Nc4 {[%clk 0:01:42]} 25. Nb5 {[%clk 0:02:53.6]}
25... Qd7 {[%clk 0:01:35.5]} 26. g3 {[%clk 0:02:49.9]} 26... Nxd2 {[%clk
0:01:22.4]} 27. Qxd2 {[%clk 0:02:48.2]} 27... Rc4 {[%clk 0:01:16.3]} 28. h4
{[%clk 0:02:33.1]} 28... Nc6 {[%clk 0:01:14.1]} 29. Rd1 {[%clk 0:02:32.3]} 29...
Bb4 {[%clk 0:01:06.9]} 30. Qd3 {[%clk 0:02:30.3]} 30... Ne7 {[%clk 0:00:38.4]}
31. h5 {[%clk 0:02:30.3]} 31... Nf5 {[%clk 0:00:36.5]} 32. Kg2 {[%clk
0:02:07.1]} 32... gxh5 {[%clk 0:00:34.6]} 33. Qe2 {[%clk 0:01:58.7]} 33... g6
{[%clk 0:00:31.2]} 34. Bd3 {[%clk 0:01:58.4]} 34... Rcc8 {[%clk 0:00:19.2]} 35.
Rab1 {[%clk 0:01:44.5]} 35... Kg7 {[%clk 0:00:20]} 36. Rh1 {[%clk 0:01:44.6]}
36... Bc3 {[%clk 0:00:20.6]} 37. g4 {[%clk 0:01:34.3]} 37... hxg4 {[%clk
0:00:20.1]} 38. Qxg4 {[%clk 0:01:34.3]} 38... Rh8 {[%clk 0:00:20.5]} 39. Bxf5
{[%clk 0:01:31.2]} 39... exf5 {[%clk 0:00:20.4]} 40. Qg5 {[%clk 0:01:32.2]}
40... Bb4 {[%clk 0:00:18.2]} 41. Qf6+ {[%clk 0:01:31]} 41... Kg8 {[%clk
0:00:18.8]} 42. Rxh8# {[%clk 0:01:22.6]} 1-0

[Event "*** Qualifier 1: Titled Tuesday 3|2 Blitz"]
[Site "Chess.com"]
[Date "2017.04.04"]
[Round "7"]
[White "rithwik2002"]
[Black "Aragon"]
[Result "1-0"]
[WhiteElo "1815"]
[BlackElo "2001"]
[TimeControl "180+2"]
[EndTime "14:39:10 PDT"]
[Termination "rithwik2002 won by resignation"]

1. e4 {[%clk 0:02:58.5]} 1... c5 {[%clk 0:02:55.6]} 2. Nf3 {[%clk 0:02:57.9]}
2... e6 {[%clk 0:02:56.3]} 3. d4 {[%clk 0:02:56.9]} 3... cxd4 {[%clk 0:02:57.6]}
4. Nxd4 {[%clk 0:02:58.8]} 4... a6 {[%clk 0:02:59.5]} 5. Nc3 {[%clk 0:02:58.6]}
5... Qc7 {[%clk 0:03:00]} 6. Be3 {[%clk 0:03:00.1]} 6... Bb4 {[%clk 0:02:59.7]}
7. Qd2 {[%clk 0:02:38.8]} 7... Nf6 {[%clk 0:03:01]} 8. f3 {[%clk 0:02:35.5]}
8... d5 {[%clk 0:03:01.8]} 9. Bd3 {[%clk 0:02:24.9]} 9... e5 {[%clk 0:02:53.8]}
10. Nde2 {[%clk 0:02:19.2]} 10... d4 {[%clk 0:02:54.7]} 11. Nxd4 {[%clk
0:02:17.9]} 11... exd4 {[%clk 0:02:55.7]} 12. Bxd4 {[%clk 0:02:15.3]} 12... Nbd7
{[%clk 0:02:41.1]} 13. O-O {[%clk 0:02:09.5]} 13... Bc5 {[%clk 0:02:40.9]} 14.
Bxc5 {[%clk 0:01:56]} 14... Qxc5+ {[%clk 0:02:42.8]} 15. Kh1 {[%clk 0:01:49.6]}
15... O-O {[%clk 0:02:39.3]} 16. f4 {[%clk 0:01:44.6]} 16... b5 {[%clk
0:02:37.6]} 17. e5 {[%clk 0:01:37.8]} 17... Ng4 {[%clk 0:02:36.4]} 18. Rae1
{[%clk 0:01:19.2]} 18... Nb6 {[%clk 0:02:19.4]} 19. h3 {[%clk 0:01:15.1]} 19...
Nh6 {[%clk 0:02:16.3]} 20. f5 {[%clk 0:01:09.5]} 20... Bb7 {[%clk 0:02:02.7]}
21. f6 {[%clk 0:01:00.1]} 21... Qc6 {[%clk 0:01:05.8]} 22. Be4 {[%clk
0:00:55.4]} 22... Qc7 {[%clk 0:00:39.4]} 23. Qg5 {[%clk 0:00:18.9]} 23... Nf5
{[%clk 0:00:40.6]} 24. Bxf5 {[%clk 0:00:14.1]} 24... g6 {[%clk 0:00:38.8]} 25.
Qh6 {[%clk 0:00:12.7]} 25... Bxg2+ {[%clk 0:00:40.7]} 26. Kxg2 {[%clk
0:00:11.1]} 26... Qc6+ {[%clk 0:00:41.8]} 27. Be4 {[%clk 0:00:10.8]} 27... Qxf6
{[%clk 0:00:41.8]} 28. exf6 {[%clk 0:00:10.8]} 1-0

[Event "*** Qualifier 1: Titled Tuesday 3|2 Blitz"]
[Site "Chess.com"]
[Date "2017.04.04"]
[Round "7"]
[White "Robin-Side"]
[Black "GeorgMeier"]
[Result "0-1"]
[WhiteElo "2410"]
[BlackElo "2709"]
[TimeControl "180+2"]
[EndTime "14:39:14 PDT"]
[Termination "GeorgMeier won on time"]

1. d4 {[%clk 0:03:02]} 1... e6 {[%clk 0:02:45.6]} 2. c4 {[%clk 0:03:03.1]} 2...
Nf6 {[%clk 0:02:46.2]} 3. Nc3 {[%clk 0:03:04]} 3... d5 {[%clk 0:02:47.8]} 4.
cxd5 {[%clk 0:03:05.9]} 4... exd5 {[%clk 0:02:49.6]} 5. Bg5 {[%clk 0:03:05.9]}
5... c6 {[%clk 0:02:51.1]} 6. e3 {[%clk 0:03:07]} 6... h6 {[%clk 0:02:52.6]} 7.
Bh4 {[%clk 0:03:07.1]} 7... Bf5 {[%clk 0:02:53.7]} 8. Qf3 {[%clk 0:02:57.2]}
8... Bg6 {[%clk 0:02:54.9]} 9. Bxf6 {[%clk 0:02:58.3]} 9... Qxf6 {[%clk
0:02:56.8]} 10. Qxf6 {[%clk 0:02:59.3]} 10... gxf6 {[%clk 0:02:58.7]} 11. Nf3
{[%clk 0:02:55.7]} 11... Nd7 {[%clk 0:02:59.9]} 12. Nh4 {[%clk 0:02:52.7]} 12...
Nb6 {[%clk 0:02:42.6]} 13. Ne2 {[%clk 0:02:48.9]} 13... Bb4+ {[%clk 0:02:33.4]}
14. Kd1 {[%clk 0:02:50.3]} 14... Nc4 {[%clk 0:02:25]} 15. Nxg6 {[%clk
0:02:19.2]} 15... fxg6 {[%clk 0:02:22.9]} 16. Kc2 {[%clk 0:02:18.5]} 16... Kf7
{[%clk 0:02:12.4]} 17. Nf4 {[%clk 0:02:16.8]} 17... Bd6 {[%clk 0:02:09.8]} 18.
Nd3 {[%clk 0:02:11.6]} 18... a5 {[%clk 0:02:08.5]} 19. Be2 {[%clk 0:01:55.3]}
19... f5 {[%clk 0:01:59.9]} 20. b3 {[%clk 0:01:38.4]} 20... Na3+ {[%clk
0:01:56.2]} 21. Kb2 {[%clk 0:01:39.2]} 21... Nb5 {[%clk 0:01:57.4]} 22. f4
{[%clk 0:01:35.8]} 22... Ba3+ {[%clk 0:01:44.5]} 23. Kc2 {[%clk 0:01:35]} 23...
Nd6 {[%clk 0:01:46]} 24. Ne5+ {[%clk 0:01:35.7]} 24... Kf6 {[%clk 0:01:47.2]}
25. Bd3 {[%clk 0:01:33]} 25... h5 {[%clk 0:01:47.3]} 26. h4 {[%clk 0:01:23.2]}
26... Rh7 {[%clk 0:01:43.7]} 27. Rh3 {[%clk 0:01:15.8]} 27... Rc8 {[%clk
0:01:42.8]} 28. Rg3 {[%clk 0:01:01.3]} 28... Rg7 {[%clk 0:01:43.9]} 29. Kd2
{[%clk 0:00:57.4]} 29... c5 {[%clk 0:01:26.4]} 30. Ke2 {[%clk 0:00:50.1]} 30...
c4 {[%clk 0:01:22.8]} 31. bxc4 {[%clk 0:00:35.8]} 31... dxc4 {[%clk 0:01:24.7]}
32. Bc2 {[%clk 0:00:36.9]} 32... b5 {[%clk 0:01:25.9]} 33. Rb1 {[%clk
0:00:13.4]} 33... Rcc7 {[%clk 0:01:27]} 34. Rg5 {[%clk 0:00:04.3]} 34... b4
{[%clk 0:01:13.8]} 35. Rg3 {[%clk 0:00:04.4]} 35... a4 {[%clk 0:01:13.1]} 36.
Bxa4 {[%clk 0:00:04.3]} 36... Ne4 {[%clk 0:01:14.5]} 37. Kf3 {[%clk 0:00:02.3]}
37... Nd2+ {[%clk 0:01:15.4]} 0-1

[Event "*** Qualifier 1: Titled Tuesday 3|2 Blitz"]
[Site "Chess.com"]
[Date "2017.04.04"]
[Round "7"]
[White "Aygehovit1992"]
[Black "michaelk123"]
[Result "0-1"]
[WhiteElo "2424"]
[BlackElo "2231"]
[TimeControl "180+2"]
[EndTime "14:39:21 PDT"]
[Termination "michaelk123 won by resignation"]

1. d4 {[%clk 0:03:02]} 1... Nf6 {[%clk 0:02:57.2]} 2. Nc3 {[%clk 0:02:50]} 2...
d5 {[%clk 0:02:55]} 3. Bf4 {[%clk 0:02:49.1]} 3... c5 {[%clk 0:02:52.4]} 4. e3
{[%clk 0:02:48.4]} 4... Nc6 {[%clk 0:02:49.8]} 5. Nf3 {[%clk 0:02:45.2]} 5...
cxd4 {[%clk 0:02:38.5]} 6. exd4 {[%clk 0:02:44.9]} 6... Bg4 {[%clk 0:02:39]} 7.
Bb5 {[%clk 0:02:37.7]} 7... e6 {[%clk 0:02:40.1]} 8. h3 {[%clk 0:02:38.2]} 8...
Bxf3 {[%clk 0:02:40.1]} 9. Qxf3 {[%clk 0:02:38.5]} 9... Bd6 {[%clk 0:02:41.4]}
10. Bxc6+ {[%clk 0:02:37.7]} 10... bxc6 {[%clk 0:02:40.9]} 11. O-O {[%clk
0:02:38.1]} 11... O-O {[%clk 0:02:37.7]} 12. Na4 {[%clk 0:02:34.1]} 12... Ne4
{[%clk 0:02:34.9]} 13. Bxd6 {[%clk 0:02:32.6]} 13... Qxd6 {[%clk 0:02:33.1]} 14.
Qd1 {[%clk 0:02:26.2]} 14... Rab8 {[%clk 0:02:16.4]} 15. c3 {[%clk 0:02:24]}
15... Qc7 {[%clk 0:02:03.4]} 16. b4 {[%clk 0:02:14.8]} 16... a5 {[%clk
0:01:59.4]} 17. a3 {[%clk 0:02:15]} 17... h6 {[%clk 0:01:56.8]} 18. Re1 {[%clk
0:02:00.8]} 18... Qf4 {[%clk 0:01:54.4]} 19. f3 {[%clk 0:01:58.4]} 19... Ng5
{[%clk 0:01:54.6]} 20. Nc5 {[%clk 0:01:46.6]} 20... axb4 {[%clk 0:01:45]} 21.
axb4 {[%clk 0:01:46.9]} 21... Ra8 {[%clk 0:01:42.1]} 22. Qe2 {[%clk 0:01:40.1]}
22... Qg3 {[%clk 0:01:39.9]} 23. Kh1 {[%clk 0:01:28.7]} 23... Rfe8 {[%clk
0:01:31]} 24. Qe5 {[%clk 0:01:21.4]} 24... Qf2 {[%clk 0:01:24.1]} 25. Rxa8
{[%clk 0:00:48.8]} 25... Rxa8 {[%clk 0:01:24.5]} 26. Qe3 {[%clk 0:00:49.6]}
26... Qb2 {[%clk 0:01:03.3]} 27. f4 {[%clk 0:00:47.1]} 27... Nh7 {[%clk
0:00:59.4]} 28. Re2 {[%clk 0:00:32]} 28... Ra1+ {[%clk 0:00:57.3]} 29. Kh2
{[%clk 0:00:33]} 29... Qb1 {[%clk 0:00:51.6]} 30. Nxe6 {[%clk 0:00:31.6]} 30...
Nf6 {[%clk 0:00:51.8]} 31. Nc5 {[%clk 0:00:26.5]} 31... Nh5 {[%clk 0:00:50.4]}
0-1

[Event "*** Qualifier 1: Titled Tuesday 3|2 Blitz"]
[Site "Chess.com"]
[Date "2017.04.04"]
[Round "7"]
[White "larso"]
[Black "iturrizaga"]
[Result "0-1"]
[WhiteElo "2437"]
[BlackElo "2657"]
[TimeControl "180+2"]
[EndTime "14:39:26 PDT"]
[Termination "iturrizaga won by resignation"]

1. d4 {[%clk 0:03:02]} 1... Nf6 {[%clk 0:03:00.5]} 2. Bf4 {[%clk 0:02:56.6]}
2... b6 {[%clk 0:02:59.5]} 3. e3 {[%clk 0:02:50.2]} 3... Bb7 {[%clk 0:02:59.8]}
4. Nf3 {[%clk 0:02:51.2]} 4... g6 {[%clk 0:03:01.2]} 5. Be2 {[%clk 0:02:50.6]}
5... Bg7 {[%clk 0:03:02.5]} 6. O-O {[%clk 0:02:51.9]} 6... O-O {[%clk
0:03:04.1]} 7. h3 {[%clk 0:02:53]} 7... e6 {[%clk 0:03:05.4]} 8. c4 {[%clk
0:02:45.1]} 8... d6 {[%clk 0:03:05.2]} 9. Nc3 {[%clk 0:02:44.7]} 9... Qe7 {[%clk
0:03:06]} 10. Qc2 {[%clk 0:02:45.1]} 10... Nbd7 {[%clk 0:02:58.3]} 11. Bh2
{[%clk 0:02:45.8]} 11... a6 {[%clk 0:02:59.5]} 12. e4 {[%clk 0:02:42.5]} 12...
e5 {[%clk 0:03:00.4]} 13. d5 {[%clk 0:02:31]} 13... a5 {[%clk 0:02:58.9]} 14. a3
{[%clk 0:02:31]} 14... a4 {[%clk 0:02:55.5]} 15. Nd2 {[%clk 0:02:07.3]} 15...
Nc5 {[%clk 0:02:56.6]} 16. Kh1 {[%clk 0:02:07.4]} 16... Nfd7 {[%clk 0:02:53.3]}
17. Nb5 {[%clk 0:02:00.4]} 17... Qd8 {[%clk 0:02:42.7]} 18. Bg4 {[%clk 0:01:57]}
18... h5 {[%clk 0:02:41.4]} 19. Be2 {[%clk 0:01:57]} 19... Ba6 {[%clk
0:02:36.1]} 20. Rad1 {[%clk 0:01:54.7]} 20... Bh6 {[%clk 0:02:28.2]} 21. Nb1
{[%clk 0:01:55.2]} 21... Bxb5 {[%clk 0:02:26.7]} 22. cxb5 {[%clk 0:01:56]} 22...
f5 {[%clk 0:02:18.1]} 23. exf5 {[%clk 0:01:53.7]} 23... Rxf5 {[%clk 0:02:20]}
24. Nc3 {[%clk 0:01:54.3]} 24... Qf6 {[%clk 0:02:18.5]} 25. f3 {[%clk
0:01:27.8]} 25... h4 {[%clk 0:02:13.7]} 26. Ne4 {[%clk 0:01:27.3]} 26... Qe7
{[%clk 0:02:06.8]} 27. Qc4 {[%clk 0:01:20.3]} 27... Be3 {[%clk 0:02:03.7]} 28.
Bg1 {[%clk 0:01:16]} 28... Bxg1 {[%clk 0:02:03.6]} 29. Kxg1 {[%clk 0:01:17.9]}
29... Rf4 {[%clk 0:02:02.9]} 30. Qc2 {[%clk 0:01:16]} 30... Nxe4 {[%clk
0:01:59.8]} 31. fxe4 {[%clk 0:01:16.7]} 31... Nc5 {[%clk 0:02:01.4]} 32. Rxf4
{[%clk 0:01:15.4]} 32... exf4 {[%clk 0:02:03.3]} 33. e5 {[%clk 0:01:14.1]} 33...
Qxe5 {[%clk 0:01:49]} 34. Qxg6+ {[%clk 0:01:12.6]} 34... Qg7 {[%clk 0:01:50.5]}
35. Qxg7+ {[%clk 0:01:13.7]} 35... Kxg7 {[%clk 0:01:52.4]} 36. Rd4 {[%clk
0:01:15.1]} 36... Re8 {[%clk 0:01:33.4]} 37. Kf1 {[%clk 0:00:44.9]} 37... Re4
{[%clk 0:01:29.2]} 38. Rd2 {[%clk 0:00:28.9]} 38... Kf6 {[%clk 0:01:27.4]} 39.
Bf3 {[%clk 0:00:27.1]} 39... Re3 {[%clk 0:01:28.4]} 40. Rd4 {[%clk 0:00:21.5]}
40... Ke5 {[%clk 0:01:29.5]} 41. Rc4 {[%clk 0:00:23.4]} 41... Rb3 {[%clk
0:01:30.5]} 42. Rc2 {[%clk 0:00:24.3]} 42... Rxb5 {[%clk 0:01:29.7]} 43. Ke2
{[%clk 0:00:24.2]} 43... Rb3 {[%clk 0:01:29.9]} 44. Kd2 {[%clk 0:00:24]} 44...
b5 {[%clk 0:01:30.7]} 45. Ke2 {[%clk 0:00:24.9]} 45... Kd4 {[%clk 0:01:28.1]}
46. Rd2+ {[%clk 0:00:25.3]} 46... Nd3 {[%clk 0:01:28]} 0-1

[Event "*** Qualifier 1: Titled Tuesday 3|2 Blitz"]
[Site "Chess.com"]
[Date "2017.04.04"]
[Round "7"]
[White "TheNextLevelFan"]
[Black "PowerThinking2650"]
[Result "1-0"]
[WhiteElo "2382"]
[BlackElo "2186"]
[TimeControl "180+2"]
[EndTime "14:39:39 PDT"]
[Termination "TheNextLevelFan won by resignation"]

1. d4 {[%clk 0:03:02]} 1... Nf6 {[%clk 0:03:00.9]} 2. c4 {[%clk 0:03:00.6]} 2...
g6 {[%clk 0:03:01.8]} 3. Nc3 {[%clk 0:03:00.5]} 3... Bg7 {[%clk 0:03:03.2]} 4.
Nf3 {[%clk 0:03:01.9]} 4... O-O {[%clk 0:03:03.7]} 5. g3 {[%clk 0:03:03.8]} 5...
d6 {[%clk 0:03:04.2]} 6. Bg2 {[%clk 0:03:05.2]} 6... Nbd7 {[%clk 0:03:05.8]} 7.
O-O {[%clk 0:03:06.8]} 7... e5 {[%clk 0:03:07.4]} 8. e4 {[%clk 0:03:07.9]} 8...
exd4 {[%clk 0:03:08.3]} 9. Nxd4 {[%clk 0:03:08.4]} 9... Re8 {[%clk 0:03:09.9]}
10. Re1 {[%clk 0:03:09.3]} 10... Nc5 {[%clk 0:03:10.4]} 11. h3 {[%clk
0:03:10.2]} 11... a5 {[%clk 0:03:10.9]} 12. b3 {[%clk 0:03:07.9]} 12... Bd7
{[%clk 0:03:10.7]} 13. Bb2 {[%clk 0:03:03.9]} 13... Qc8 {[%clk 0:03:11.1]} 14.
Kh2 {[%clk 0:03:04.7]} 14... Re5 {[%clk 0:03:12]} 15. g4 {[%clk 0:02:53.9]}
15... Bxg4 {[%clk 0:02:32.2]} 16. hxg4 {[%clk 0:02:54.2]} 16... Nxg4+ {[%clk
0:02:32.3]} 17. Kg1 {[%clk 0:02:53.9]} 17... Qd8 {[%clk 0:02:04.6]} 18. Qxg4
{[%clk 0:02:34.7]} 18... Nd3 {[%clk 0:02:05.4]} 19. Qe2 {[%clk 0:01:46.7]} 19...
Nxb2 {[%clk 0:01:16]} 20. Qxb2 {[%clk 0:01:47]} 20... Rh5 {[%clk 0:01:13.6]} 21.
Nf3 {[%clk 0:01:46.6]} 21... g5 {[%clk 0:01:11.5]} 22. Re3 {[%clk 0:01:34.2]}
22... g4 {[%clk 0:01:11.7]} 23. Nh2 {[%clk 0:01:20.3]} 23... Qh4 {[%clk
0:01:10.7]} 24. Nf1 {[%clk 0:01:20.9]} 24... Be5 {[%clk 0:00:57.5]} 25. Rg3
{[%clk 0:01:21.4]} 25... Bxg3 {[%clk 0:00:52.8]} 26. fxg3 {[%clk 0:01:22.1]}
26... Qf6 {[%clk 0:00:50.4]} 27. Rc1 {[%clk 0:01:14.4]} 27... a4 {[%clk
0:00:41.4]} 28. Nxa4 {[%clk 0:01:03.6]} 28... Qxb2 {[%clk 0:00:37.2]} 29. Nxb2
{[%clk 0:01:05.5]} 29... Rxa2 {[%clk 0:00:38.1]} 30. Nd3 {[%clk 0:01:06.9]}
30... b5 {[%clk 0:00:35.4]} 31. Nf4 {[%clk 0:01:05.9]} 31... Rc5 {[%clk
0:00:29.2]} 32. Nd3 {[%clk 0:01:05.7]} 32... Rg5 {[%clk 0:00:21.5]} 33. Ne3
{[%clk 0:01:04.3]} 33... bxc4 {[%clk 0:00:20.9]} 34. Rxc4 {[%clk 0:00:56.3]}
34... Re2 {[%clk 0:00:20.1]} 35. Nf5 {[%clk 0:00:54.4]} 35... d5 {[%clk
0:00:18.2]} 36. Rxc7 {[%clk 0:00:53]} 36... h5 {[%clk 0:00:15.6]} 37. Nf4 {[%clk
0:00:51.3]} 37... dxe4 {[%clk 0:00:15.2]} 38. Nh6+ {[%clk 0:00:49.8]} 38... Kg7
{[%clk 0:00:13.1]} 39. Nxe2 {[%clk 0:00:49.9]} 1-0